[Event "Titled Tuesday Blitz July 25 Late 2023"]
[White "Bernabeu Lopez, Carlos Javier"]
[Black "Lenderman, Aleksandr"]
[WhiteFideId "2235366"]
[BlackFideId "2021285"]
[WhiteElo "2680"]
[BlackElo "2892"]
[Result "1/2-1/2"]
[Round "11"]
[TimeControl "180+2"]
[Date "2023.07.25"]
[WhiteClock "0:01:55"]
[BlackClock "0:01:22"]
[Board "17"]

1. e4 {[%clk 0:03:00]}  e6 {[%clk 0:03:00]} 2. d4 {[%clk 0:03:00]}  d5 {[%clk 0:03:00]} 3. Nd2 {[%clk 0:03:01]}  Nd7 {[%clk 0:02:56]} 4. Ngf3 {[%clk 0:03:00]}  dxe4 {[%clk 0:02:48]} 5. Nxe4 {[%clk 0:03:01]}  Ngf6 {[%clk 0:02:48]} 6. Nxf6+ {[%clk 0:03:01]}  Nxf6 {[%clk 0:02:49]} 7. Bd3 {[%clk 0:03:01]}  c5 {[%clk 0:02:48]} 8. dxc5 {[%clk 0:02:59]}  Bxc5 {[%clk 0:02:49]} 9. O-O {[%clk 0:02:59]}  O-O {[%clk 0:02:48]} 10. Qe2 {[%clk 0:02:59]}  b6 {[%clk 0:02:48]} 11. Bg5 {[%clk 0:02:55]}  Qc7 {[%clk 0:02:48]} 12. Bh4 {[%clk 0:02:55]}  Bb7 {[%clk 0:02:48]} 13. Bg3 {[%clk 0:02:55]}  Bd6 {[%clk 0:02:47]} 14. Bxd6 {[%clk 0:02:53]}  Qxd6 {[%clk 0:02:47]} 15. Rad1 {[%clk 0:02:54]}  Qf4 {[%clk 0:02:46]} 16. Qe5 {[%clk 0:02:49]}  Qxe5 {[%clk 0:02:44]} 17. Nxe5 {[%clk 0:02:50]}  Rfd8 {[%clk 0:02:44]} 18. c3 {[%clk 0:02:50]}  Kf8 {[%clk 0:02:44]} 19. f3 {[%clk 0:02:50]}  Ke7 {[%clk 0:02:44]} 20. Kf2 {[%clk 0:02:49]}  Rd5 {[%clk 0:02:43]} 21. Nc4 {[%clk 0:02:48]}  Rad8 {[%clk 0:02:41]} 22. Be2 {[%clk 0:02:49]}  Ba6 {[%clk 0:02:35]} 23. Ne3 {[%clk 0:02:46]}  Rd2 {[%clk 0:02:33]} 24. c4 {[%clk 0:02:43]}  Rxb2 {[%clk 0:02:32]} 25. Rxd8 {[%clk 0:02:43]}  Kxd8 {[%clk 0:02:33]} 26. Rd1+ {[%clk 0:02:43]}  Ke7 {[%clk 0:02:32]} 27. a4 {[%clk 0:02:42]}  Nd7 {[%clk 0:02:33]} 28. a5 {[%clk 0:02:41]}  bxa5 {[%clk 0:02:21]} 29. Ra1 {[%clk 0:02:41]}  Ne5 {[%clk 0:02:19]} 30. Rxa5 {[%clk 0:02:34]}  Nd3+ {[%clk 0:02:19]} 31. Kf1 {[%clk 0:02:26]}  Rb1+ {[%clk 0:02:18]} 32. Nd1 {[%clk 0:02:23]}  Bxc4 {[%clk 0:02:16]} 33. Rxa7+ {[%clk 0:02:24]}  Kf6 {[%clk 0:02:14]} 34. Rc7 {[%clk 0:02:22]}  Bb5 {[%clk 0:01:59]} 35. Rb7 {[%clk 0:02:19]}  g5 {[%clk 0:01:30]} 36. Rxb5 {[%clk 0:02:16]}  Rxb5 {[%clk 0:01:30]} 37. Bxd3 {[%clk 0:02:16]}  Ra5 {[%clk 0:01:30]} 38. Bxh7 {[%clk 0:02:15]}  Ra1 {[%clk 0:01:29]} 39. Ke2 {[%clk 0:02:14]}  Ra2+ {[%clk 0:01:28]} 40. Kf1 {[%clk 0:02:14]}  Ra1 {[%clk 0:01:29]} 41. Ke2 {[%clk 0:02:08]}  Ke5 {[%clk 0:01:29]} 42. Nf2 {[%clk 0:01:57]}  Kd4 {[%clk 0:01:26]} 43. Bg8 {[%clk 0:01:54]}  Ra2+ {[%clk 0:01:26]} 44. Kf1 {[%clk 0:01:54]}  Ra1+ {[%clk 0:01:21]} 45. Ke2 {[%clk 0:01:54]}  Ra2+ {[%clk 0:01:22]} 46. Kf1 {[%clk 0:01:55]}  Ra1+ {[%clk 0:01:22]} 47. Ke2 {[%clk 0:01:55]} 1/2-1/2


[Site "https://www.chess.com"]

[Event "Titled Tuesday Blitz July 25 Late 2023"]
[White "Oro, Faustino"]
[Black "Pham, Le Thao Nguyen"]
[WhiteFideId "20000197"]
[BlackFideId "12401226"]
[WhiteElo "2789"]
[BlackElo "2603"]
[Result "0-1"]
[Round "11"]
[TimeControl "180+2"]
[Date "2023.07.25"]
[WhiteClock "0:00:51"]
[BlackClock "0:01:48"]
[Board "18"]

1. d4 {[%clk 0:03:00]}  d5 {[%clk 0:02:59]} 2. c4 {[%clk 0:03:00]}  c6 {[%clk 0:03:00]} 3. Nf3 {[%clk 0:02:58]}  Nf6 {[%clk 0:03:00]} 4. Nc3 {[%clk 0:02:56]}  dxc4 {[%clk 0:03:00]} 5. a4 {[%clk 0:02:52]}  Bf5 {[%clk 0:03:00]} 6. Ne5 {[%clk 0:02:52]}  Na6 {[%clk 0:02:59]} 7. f3 {[%clk 0:02:32]}  Nd7 {[%clk 0:02:58]} 8. Nxc4 {[%clk 0:02:30]}  e5 {[%clk 0:02:57]} 9. e4 {[%clk 0:02:25]}  exd4 {[%clk 0:02:56]} 10. Qxd4 {[%clk 0:02:21]}  Be6 {[%clk 0:02:54]} 11. Nd6+ {[%clk 0:02:04]}  Bxd6 {[%clk 0:02:53]} 12. Qxd6 {[%clk 0:02:04]}  Ndc5 {[%clk 0:02:53]} 13. Qxd8+ {[%clk 0:02:01]}  Rxd8 {[%clk 0:02:52]} 14. Be3 {[%clk 0:01:57]}  Nb3 {[%clk 0:02:44]} 15. Rd1 {[%clk 0:01:56]}  Rxd1+ {[%clk 0:02:37]} 16. Kxd1 {[%clk 0:01:57]}  Nac5 {[%clk 0:02:36]} 17. Kc2 {[%clk 0:01:51]}  a5 {[%clk 0:02:30]} 18. Be2 {[%clk 0:01:51]}  Ke7 {[%clk 0:02:28]} 19. Rd1 {[%clk 0:01:38]}  Rd8 {[%clk 0:02:19]} 20. Rxd8 {[%clk 0:01:29]}  Kxd8 {[%clk 0:02:20]} 21. f4 {[%clk 0:01:30]}  f6 {[%clk 0:02:16]} 22. Bf3 {[%clk 0:01:22]}  Kc7 {[%clk 0:02:12]} 23. g4 {[%clk 0:01:19]}  Na6 {[%clk 0:02:03]} 24. h4 {[%clk 0:00:59]}  Nb4+ {[%clk 0:02:02]} 25. Kd1 {[%clk 0:00:59]}  b6 {[%clk 0:01:58]} 26. h5 {[%clk 0:00:59]}  Nd3 {[%clk 0:01:49]} 27. Kc2 {[%clk 0:00:51]}  Ne1+ {[%clk 0:01:48]} 0-1


[Site "https://www.chess.com"]

[Event "Titled Tuesday Blitz July 25 Late 2023"]
[White "Elsa167"]
[Black "Przybylski, Wojciech"]
[BlackFideId "1117599"]
[WhiteElo "2783"]
[BlackElo "2577"]
[Result "0-1"]
[Round "11"]
[TimeControl "180+2"]
[Date "2023.07.25"]
[WhiteClock "0:01:17"]
[BlackClock "0:01:39"]
[Board "19"]

1. e4 {[%clk 0:03:00]}  e5 {[%clk 0:02:57]} 2. f4 {[%clk 0:03:00]}  d5 {[%clk 0:02:56]} 3. exd5 {[%clk 0:03:00]}  exf4 {[%clk 0:02:56]} 4. Nf3 {[%clk 0:03:00]}  Nf6 {[%clk 0:02:56]} 5. Bb5+ {[%clk 0:03:00]}  c6 {[%clk 0:02:55]} 6. dxc6 {[%clk 0:03:01]}  Nxc6 {[%clk 0:02:55]} 7. Nc3 {[%clk 0:02:59]}  Bd6 {[%clk 0:02:55]} 8. Qe2+ {[%clk 0:03:00]}  Be6 {[%clk 0:02:51]} 9. Nd4 {[%clk 0:02:58]}  Qd7 {[%clk 0:02:44]} 10. Bxc6 {[%clk 0:02:53]}  bxc6 {[%clk 0:02:43]} 11. Nxe6 {[%clk 0:02:52]}  Qxe6 {[%clk 0:02:36]} 12. Qxe6+ {[%clk 0:02:51]}  fxe6 {[%clk 0:02:36]} 13. b3 {[%clk 0:02:51]}  g5 {[%clk 0:02:28]} 14. Bb2 {[%clk 0:02:51]}  O-O {[%clk 0:02:27]} 15. O-O-O {[%clk 0:02:47]}  e5 {[%clk 0:02:22]} 16. Rde1 {[%clk 0:02:46]}  Rae8 {[%clk 0:02:20]} 17. Ne4 {[%clk 0:02:45]}  Nxe4 {[%clk 0:02:08]} 18. Rxe4 {[%clk 0:02:46]}  c5 {[%clk 0:02:04]} 19. Rhe1 {[%clk 0:02:45]}  Rf5 {[%clk 0:02:03]} 20. h3 {[%clk 0:02:29]}  h5 {[%clk 0:02:01]} 21. d3 {[%clk 0:02:24]}  g4 {[%clk 0:01:57]} 22. hxg4 {[%clk 0:02:23]}  hxg4 {[%clk 0:01:57]} 23. Rh1 {[%clk 0:02:18]}  Re6 {[%clk 0:01:54]} 24. Kd2 {[%clk 0:02:16]}  Rg6 {[%clk 0:01:51]} 25. Ke2 {[%clk 0:02:10]}  f3+ {[%clk 0:01:49]} 26. Kf1 {[%clk 0:02:10]}  g3 {[%clk 0:01:45]} 27. Rc4 {[%clk 0:01:30]}  fxg2+ {[%clk 0:01:39]} 28. Kxg2 {[%clk 0:01:30]}  Rf2+ {[%clk 0:01:39]} 29. Kg1 {[%clk 0:01:17]}  g2 {[%clk 0:01:39]} 0-1


[Site "https://www.chess.com"]

[Event "Titled Tuesday Blitz July 25 Late 2023"]
[White "Tristan, Leonardo"]
[Black "Karamsetty, Jeevan"]
[WhiteFideId "113816"]
[BlackFideId "2025337"]
[WhiteElo "2767"]
[BlackElo "2567"]
[Result "1/2-1/2"]
[Round "11"]
[TimeControl "180+2"]
[Date "2023.07.25"]
[WhiteClock "0:00:12"]
[BlackClock "0:00:11"]
[Board "20"]

1. d4 {[%clk 0:03:00]}  d6 {[%clk 0:03:00]} 2. e4 {[%clk 0:03:00]}  Nf6 {[%clk 0:02:59]} 3. Nc3 {[%clk 0:03:00]}  e5 {[%clk 0:02:59]} 4. Nf3 {[%clk 0:03:00]}  Nbd7 {[%clk 0:02:59]} 5. Bc4 {[%clk 0:03:00]}  Be7 {[%clk 0:03:00]} 6. O-O {[%clk 0:03:01]}  O-O {[%clk 0:03:01]} 7. Re1 {[%clk 0:03:01]}  a6 {[%clk 0:03:01]} 8. a4 {[%clk 0:03:01]}  b6 {[%clk 0:03:01]} 9. Nd5 {[%clk 0:03:00]}  Bb7 {[%clk 0:02:57]} 10. Nxe7+ {[%clk 0:03:00]}  Qxe7 {[%clk 0:02:58]} 11. Bd3 {[%clk 0:03:00]}  c5 {[%clk 0:02:31]} 12. d5 {[%clk 0:02:51]}  Ne8 {[%clk 0:02:28]} 13. Nd2 {[%clk 0:02:39]}  f5 {[%clk 0:02:23]} 14. exf5 {[%clk 0:02:07]}  Bxd5 {[%clk 0:02:23]} 15. Bc4 {[%clk 0:01:57]}  Bxc4 {[%clk 0:02:01]} 16. Nxc4 {[%clk 0:01:57]}  Rb8 {[%clk 0:02:00]} 17. Qd5+ {[%clk 0:01:46]}  Kh8 {[%clk 0:02:00]} 18. Rd1 {[%clk 0:01:46]}  Ndf6 {[%clk 0:01:49]} 19. Qe6 {[%clk 0:01:36]}  Qc7 {[%clk 0:01:30]} 20. Bg5 {[%clk 0:01:04]}  Rd8 {[%clk 0:01:25]} 21. Ne3 {[%clk 0:00:49]}  Rd7 {[%clk 0:01:13]} 22. Nd5 {[%clk 0:00:37]}  Nxd5 {[%clk 0:00:53]} 23. Rxd5 {[%clk 0:00:38]}  Rdf7 {[%clk 0:00:53]} 24. g4 {[%clk 0:00:39]}  Qc6 {[%clk 0:00:35]} 25. Rd3 {[%clk 0:00:30]}  Qe4 {[%clk 0:00:23]} 26. f3 {[%clk 0:00:27]}  Qe2 {[%clk 0:00:20]} 27. Be7 {[%clk 0:00:24]}  Qxc2 {[%clk 0:00:18]} 28. Bxf8 {[%clk 0:00:25]}  Rxf8 {[%clk 0:00:18]} 29. Rad1 {[%clk 0:00:23]}  Qxb2 {[%clk 0:00:14]} 30. Qe7 {[%clk 0:00:23]}  Rg8 {[%clk 0:00:13]} 31. g5 {[%clk 0:00:23]}  c4 {[%clk 0:00:11]} 32. R3d2 {[%clk 0:00:21]}  Qc3 {[%clk 0:00:09]} 33. Rg2 {[%clk 0:00:20]}  Qxf3 {[%clk 0:00:08]} 34. Rf1 {[%clk 0:00:20]}  Qe3+ {[%clk 0:00:08]} 35. Kh1 {[%clk 0:00:20]}  Qe4 {[%clk 0:00:07]} 36. g6 {[%clk 0:00:14]}  h6 {[%clk 0:00:04]} 37. Qe6 {[%clk 0:00:06]}  Nf6 {[%clk 0:00:02]} 38. h3 {[%clk 0:00:04]}  c3 {[%clk 0:00:02]} 39. Qb3 {[%clk 0:00:04]}  Qe3 {[%clk 0:00:02]} 40. Qc2 {[%clk 0:00:04]}  Qxh3+ {[%clk 0:00:02]} 41. Kg1 {[%clk 0:00:04]}  Qe3+ {[%clk 0:00:03]} 42. Qf2 {[%clk 0:00:03]}  Qxf2+ {[%clk 0:00:03]} 43. Rgxf2 {[%clk 0:00:04]}  d5 {[%clk 0:00:04]} 44. Rc2 {[%clk 0:00:04]}  d4 {[%clk 0:00:05]} 45. Rb1 {[%clk 0:00:05]}  Re8 {[%clk 0:00:05]} 46. Rxb6 {[%clk 0:00:05]}  Nd5 {[%clk 0:00:05]} 47. Rd6 {[%clk 0:00:05]}  Ne3 {[%clk 0:00:06]} 48. Rc1 {[%clk 0:00:06]}  c2 {[%clk 0:00:06]} 49. Re6 {[%clk 0:00:05]}  Rb8 {[%clk 0:00:06]} 50. Rxe5 {[%clk 0:00:06]}  Kg8 {[%clk 0:00:07]} 51. Kf2 {[%clk 0:00:05]}  Kf8 {[%clk 0:00:07]} 52. Rxe3 {[%clk 0:00:05]}  dxe3+ {[%clk 0:00:07]} 53. Kxe3 {[%clk 0:00:06]}  Rb4 {[%clk 0:00:08]} 54. Rxc2 {[%clk 0:00:06]}  Ke7 {[%clk 0:00:08]} 55. Rc7+ {[%clk 0:00:06]}  Kf6 {[%clk 0:00:09]} 56. Rf7+ {[%clk 0:00:06]}  Kg5 {[%clk 0:00:09]} 57. Rxg7 {[%clk 0:00:06]}  Kxf5 {[%clk 0:00:10]} 58. Rg8 {[%clk 0:00:07]}  Rg4 {[%clk 0:00:10]} 59. g7 {[%clk 0:00:07]}  Kf6 {[%clk 0:00:11]} 60. Ra8 {[%clk 0:00:06]}  Kxg7 {[%clk 0:00:11]} 61. Rxa6 {[%clk 0:00:06]}  h5 {[%clk 0:00:11]} 62. Kf3 {[%clk 0:00:06]}  Rg1 {[%clk 0:00:10]} 63. Ra5 {[%clk 0:00:06]}  Ra1 {[%clk 0:00:10]} 64. Kg3 {[%clk 0:00:05]}  Kf6 {[%clk 0:00:10]} 65. Kf4 {[%clk 0:00:06]}  Ke6 {[%clk 0:00:11]} 66. Ra6+ {[%clk 0:00:05]}  Kd5 {[%clk 0:00:10]} 67. Ra8 {[%clk 0:00:04]}  Kc5 {[%clk 0:00:10]} 68. a5 {[%clk 0:00:04]}  Kb5 {[%clk 0:00:10]} 69. Rb8+ {[%clk 0:00:05]}  Kc6 {[%clk 0:00:09]} 70. Rb6+ {[%clk 0:00:04]}  Kc5 {[%clk 0:00:07]} 71. Rh6 {[%clk 0:00:04]}  Rxa5 {[%clk 0:00:06]} 72. Rxh5+ {[%clk 0:00:05]}  Kb4 {[%clk 0:00:07]} 73. Rh1 {[%clk 0:00:04]}  Ra4 {[%clk 0:00:08]} 74. Ke5 {[%clk 0:00:04]}  Ra3 {[%clk 0:00:08]} 75. Kd5 {[%clk 0:00:04]}  Rb3 {[%clk 0:00:08]} 76. Rh4+ {[%clk 0:00:03]}  Kc3 {[%clk 0:00:09]} 77. Rh3+ {[%clk 0:00:03]}  Kb2 {[%clk 0:00:08]} 78. Rh2+ {[%clk 0:00:04]}  Kc3 {[%clk 0:00:08]} 79. Kc5 {[%clk 0:00:04]}  Rb2 {[%clk 0:00:07]} 80. Rh3+ {[%clk 0:00:04]}  Kd2 {[%clk 0:00:08]} 81. Kd4 {[%clk 0:00:04]}  Rb4+ {[%clk 0:00:08]} 82. Kc5 {[%clk 0:00:05]}  Rg4 {[%clk 0:00:08]} 83. Kd5 {[%clk 0:00:05]}  Ke2 {[%clk 0:00:09]} 84. Ke5 {[%clk 0:00:06]}  Kf2 {[%clk 0:00:09]} 85. Rc3 {[%clk 0:00:06]}  Rg3 {[%clk 0:00:09]} 86. Rc1 {[%clk 0:00:05]}  Re3+ {[%clk 0:00:09]} 87. Kf4 {[%clk 0:00:05]}  Rf3+ {[%clk 0:00:09]} 88. Kg4 {[%clk 0:00:06]}  Rd3 {[%clk 0:00:09]} 89. Rc2+ {[%clk 0:00:06]}  Ke3 {[%clk 0:00:09]} 90. Kg3 {[%clk 0:00:06]}  Kd4+ {[%clk 0:00:09]} 91. Kf4 {[%clk 0:00:07]}  Rc3 {[%clk 0:00:09]} 92. Rd2+ {[%clk 0:00:07]}  Rd3 {[%clk 0:00:09]} 93. Ra2 {[%clk 0:00:07]}  Kc3 {[%clk 0:00:10]} 94. Ke4 {[%clk 0:00:07]}  Rd4+ {[%clk 0:00:10]} 95. Ke3 {[%clk 0:00:07]}  Rd7 {[%clk 0:00:09]} 96. Ra3+ {[%clk 0:00:07]}  Kc4 {[%clk 0:00:09]} 97. Ra8 {[%clk 0:00:08]}  Kc5 {[%clk 0:00:09]} 98. Rc8+ {[%clk 0:00:08]}  Kd6 {[%clk 0:00:09]} 99. Rc2 {[%clk 0:00:09]}  Re7+ {[%clk 0:00:09]} 100. Kd4 {[%clk 0:00:09]}  Ke6 {[%clk 0:00:09]} 101. Rc6+ {[%clk 0:00:10]}  Kd7 {[%clk 0:00:09]} 102. Ra6 {[%clk 0:00:10]}  Ke8 {[%clk 0:00:09]} 103. Kd5 {[%clk 0:00:10]}  Kf7 {[%clk 0:00:09]} 104. Ra2 {[%clk 0:00:09]}  Re3 {[%clk 0:00:08]} 105. Rf2+ {[%clk 0:00:09]}  Kg6 {[%clk 0:00:08]} 106. Kd4 {[%clk 0:00:09]}  Re7 {[%clk 0:00:08]} 107. Rg2+ {[%clk 0:00:10]}  Kf6 {[%clk 0:00:09]} 108. Rh2 {[%clk 0:00:10]}  Kg6 {[%clk 0:00:09]} 109. Kd5 {[%clk 0:00:10]}  Kf6 {[%clk 0:00:09]} 110. Rf2+ {[%clk 0:00:10]}  Kg6 {[%clk 0:00:09]} 111. Rf3 {[%clk 0:00:11]}  Re1 {[%clk 0:00:09]} 112. Kd4 {[%clk 0:00:11]}  Kg5 {[%clk 0:00:10]} 113. Rf2 {[%clk 0:00:11]}  Kg4 {[%clk 0:00:10]} 114. Rf8 {[%clk 0:00:12]}  Kg5 {[%clk 0:00:10]} 115. Kd3 {[%clk 0:00:12]}  Re6 {[%clk 0:00:10]} 116. Rf2 {[%clk 0:00:12]}  Rf6 {[%clk 0:00:10]} 117. Rg2+ {[%clk 0:00:11]}  Kf5 {[%clk 0:00:10]} 118. Ke3 {[%clk 0:00:12]}  Re6+ {[%clk 0:00:10]} 119. Kd4 {[%clk 0:00:12]}  Rg6 {[%clk 0:00:10]} 120. Rf2+ {[%clk 0:00:12]}  Ke6 {[%clk 0:00:11]} 121. Ra2 {[%clk 0:00:11]}  Rg4+ {[%clk 0:00:11]} 122. Kc5 {[%clk 0:00:12]} 1/2-1/2


[Site "https://www.chess.com"]

[Event "Titled Tuesday Blitz July 25 Late 2023"]
[White "Voege, Tobias"]
[Black "Maksimovic, Bojan"]
[WhiteFideId "1270513"]
[BlackFideId "14408120"]
[WhiteElo "2655"]
[BlackElo "2886"]
[Result "1/2-1/2"]
[Round "11"]
[TimeControl "180+2"]
[Date "2023.07.25"]
[WhiteClock "0:00:14"]
[BlackClock "0:00:24"]
[Board "22"]

1. d4 {[%clk 0:03:00]}  Nf6 {[%clk 0:03:00]} 2. c4 {[%clk 0:03:00]}  g6 {[%clk 0:03:00]} 3. Nc3 {[%clk 0:03:01]}  Bg7 {[%clk 0:03:01]} 4. Nf3 {[%clk 0:03:01]}  O-O {[%clk 0:03:01]} 5. Bg5 {[%clk 0:03:02]}  h6 {[%clk 0:03:00]} 6. Bh4 {[%clk 0:03:02]}  c5 {[%clk 0:03:00]} 7. d5 {[%clk 0:03:02]}  b5 {[%clk 0:02:53]} 8. cxb5 {[%clk 0:03:02]}  a6 {[%clk 0:02:53]} 9. bxa6 {[%clk 0:03:02]}  Bxa6 {[%clk 0:02:53]} 10. Nd2 {[%clk 0:03:00]}  Qb6 {[%clk 0:02:46]} 11. Qc2 {[%clk 0:02:58]}  d6 {[%clk 0:02:40]} 12. e4 {[%clk 0:02:57]}  Bxf1 {[%clk 0:02:41]} 13. Rxf1 {[%clk 0:02:57]}  Nbd7 {[%clk 0:02:42]} 14. f4 {[%clk 0:02:57]}  Rfb8 {[%clk 0:02:42]} 15. Rb1 {[%clk 0:02:57]}  Qa6 {[%clk 0:02:39]} 16. h3 {[%clk 0:02:52]}  Nh5 {[%clk 0:02:38]} 17. g4 {[%clk 0:02:38]}  Nxf4 {[%clk 0:02:38]} 18. Rxf4 {[%clk 0:02:34]}  g5 {[%clk 0:02:38]} 19. Rf5 {[%clk 0:02:22]}  gxh4 {[%clk 0:02:38]} 20. g5 {[%clk 0:02:19]}  Ne5 {[%clk 0:02:37]} 21. gxh6 {[%clk 0:02:08]}  Bxh6 {[%clk 0:02:38]} 22. Nf3 {[%clk 0:02:08]}  Nd3+ {[%clk 0:02:38]} 23. Kd1 {[%clk 0:02:08]}  f6 {[%clk 0:02:27]} 24. Rh5 {[%clk 0:01:54]}  Nxb2+ {[%clk 0:02:06]} 25. Rxb2 {[%clk 0:01:48]}  Rxb2 {[%clk 0:02:07]} 26. Qxb2 {[%clk 0:01:43]}  Qd3+ {[%clk 0:02:07]} 27. Nd2 {[%clk 0:01:42]}  Bxd2 {[%clk 0:01:21]} 28. Qxd2 {[%clk 0:01:43]}  Qxh3 {[%clk 0:01:22]} 29. Qh6 {[%clk 0:00:59]}  Kf7 {[%clk 0:01:22]} 30. Qh7+ {[%clk 0:00:56]}  Ke8 {[%clk 0:01:23]} 31. Qg8+ {[%clk 0:00:51]}  Kd7 {[%clk 0:01:23]} 32. Qe6+ {[%clk 0:00:50]}  Qxe6 {[%clk 0:01:23]} 33. dxe6+ {[%clk 0:00:51]}  Kxe6 {[%clk 0:01:24]} 34. Rxh4 {[%clk 0:00:51]}  Ke5 {[%clk 0:01:24]} 35. Kc2 {[%clk 0:00:48]}  e6 {[%clk 0:01:22]} 36. Rh5+ {[%clk 0:00:45]}  f5 {[%clk 0:01:23]} 37. exf5 {[%clk 0:00:45]}  exf5 {[%clk 0:01:24]} 38. Rh1 {[%clk 0:00:39]}  f4 {[%clk 0:01:18]} 39. Rh5+ {[%clk 0:00:37]}  Ke6 {[%clk 0:01:17]} 40. Kd3 {[%clk 0:00:33]}  Ra3 {[%clk 0:01:13]} 41. Rh6+ {[%clk 0:00:30]}  Ke5 {[%clk 0:01:11]} 42. Rh5+ {[%clk 0:00:25]}  Ke6 {[%clk 0:01:12]} 43. Kc4 {[%clk 0:00:18]}  f3 {[%clk 0:00:50]} 44. Rh8 {[%clk 0:00:18]}  d5+ {[%clk 0:00:22]} 45. Nxd5 {[%clk 0:00:18]}  Rxa2 {[%clk 0:00:23]} 46. Ne3 {[%clk 0:00:17]}  Ke5 {[%clk 0:00:21]} 47. Re8+ {[%clk 0:00:16]}  Kf4 {[%clk 0:00:21]} 48. Nd5+ {[%clk 0:00:16]}  Kg3 {[%clk 0:00:22]} 49. Rg8+ {[%clk 0:00:16]}  Kf2 {[%clk 0:00:21]} 50. Kxc5 {[%clk 0:00:16]}  Rd2 {[%clk 0:00:21]} 51. Kc4 {[%clk 0:00:16]}  Ke2 {[%clk 0:00:21]} 52. Re8+ {[%clk 0:00:16]}  Kf2 {[%clk 0:00:21]} 53. Nc3 {[%clk 0:00:15]}  Rd7 {[%clk 0:00:21]} 54. Ne4+ {[%clk 0:00:14]}  Kg2 {[%clk 0:00:21]} 55. Rg8+ {[%clk 0:00:14]}  Kf1 {[%clk 0:00:21]} 56. Rf8 {[%clk 0:00:14]}  Ke2 {[%clk 0:00:21]} 57. Nc3+ {[%clk 0:00:13]}  Ke3 {[%clk 0:00:21]} 58. Nd5+ {[%clk 0:00:14]}  Ke2 {[%clk 0:00:22]} 59. Nc3+ {[%clk 0:00:14]}  Ke3 {[%clk 0:00:23]} 60. Nd5+ {[%clk 0:00:14]}  Ke2 {[%clk 0:00:24]} 61. Nc3+ {[%clk 0:00:14]} 1/2-1/2


[Site "https://www.chess.com"]

[Event "Titled Tuesday Blitz July 25 Late 2023"]
[White "Troff, Kayden"]
[Black "Tanaka, Taira Tyler"]
[WhiteFideId "2047896"]
[BlackFideId "7002351"]
[WhiteElo "2802"]
[BlackElo "2637"]
[Result "1-0"]
[Round "11"]
[TimeControl "180+2"]
[Date "2023.07.25"]
[WhiteClock "0:00:09"]
[BlackClock "0:00:00"]
[Board "25"]

1. d4 {[%clk 0:03:00]}  Nf6 {[%clk 0:02:58]} 2. Nf3 {[%clk 0:03:01]}  g6 {[%clk 0:02:58]} 3. Bg5 {[%clk 0:03:00]}  Bg7 {[%clk 0:02:59]} 4. e3 {[%clk 0:02:59]}  O-O {[%clk 0:02:59]} 5. Nc3 {[%clk 0:02:50]}  d5 {[%clk 0:02:59]} 6. h4 {[%clk 0:02:46]}  h5 {[%clk 0:02:58]} 7. Be2 {[%clk 0:02:44]}  Bg4 {[%clk 0:02:56]} 8. Ne5 {[%clk 0:02:44]}  Bxe2 {[%clk 0:02:56]} 9. Qxe2 {[%clk 0:02:45]}  c5 {[%clk 0:02:56]} 10. dxc5 {[%clk 0:02:43]}  Nc6 {[%clk 0:02:55]} 11. Nd3 {[%clk 0:02:41]}  e5 {[%clk 0:02:51]} 12. e4 {[%clk 0:02:22]}  Nd4 {[%clk 0:02:51]} 13. Qd2 {[%clk 0:02:22]}  dxe4 {[%clk 0:02:42]} 14. Bxf6 {[%clk 0:02:20]}  Bxf6 {[%clk 0:02:39]} 15. Nxe4 {[%clk 0:02:20]}  Bg7 {[%clk 0:02:18]} 16. c3 {[%clk 0:02:12]}  Ne6 {[%clk 0:02:07]} 17. Qe3 {[%clk 0:01:12]}  f5 {[%clk 0:01:25]} 18. Ng5 {[%clk 0:01:07]}  Nxg5 {[%clk 0:01:23]} 19. hxg5 {[%clk 0:01:07]}  e4 {[%clk 0:01:12]} 20. Nf4 {[%clk 0:00:50]}  Qxg5 {[%clk 0:01:12]} 21. O-O-O {[%clk 0:00:49]}  Rfd8 {[%clk 0:01:03]} 22. g3 {[%clk 0:00:42]}  Qf6 {[%clk 0:00:50]} 23. Kc2 {[%clk 0:00:31]}  a5 {[%clk 0:00:42]} 24. Qe2 {[%clk 0:00:22]}  Bh6 {[%clk 0:00:39]} 25. Qc4+ {[%clk 0:00:16]}  Kh7 {[%clk 0:00:35]} 26. Ne6 {[%clk 0:00:15]}  Rxd1 {[%clk 0:00:21]} 27. Rxd1 {[%clk 0:00:15]}  Re8 {[%clk 0:00:21]} 28. Rd7+ {[%clk 0:00:16]}  Re7 {[%clk 0:00:21]} 29. Qd5 {[%clk 0:00:16]}  Bg7 {[%clk 0:00:12]} 30. Nf4 {[%clk 0:00:11]}  Re5 {[%clk 0:00:05]} 31. Qxb7 {[%clk 0:00:10]}  e3 {[%clk 0:00:04]} 32. fxe3 {[%clk 0:00:09]}  Rxe3 {[%clk 0:00:05]} 33. Nd5 {[%clk 0:00:09]}  Re2+ {[%clk 0:00:05]} 34. Kb3 {[%clk 0:00:09]}  Qe5 {[%clk 0:00:00]} 35. Re7 {[%clk 0:00:09]} 1-0


[Site "https://www.chess.com"]

[Event "Titled Tuesday Blitz July 25 Late 2023"]
[White "Tanenbaum, Zachary"]
[Black "Tarhan, Adar"]
[WhiteFideId "2060850"]
[BlackFideId "34544712"]
[WhiteElo "2747"]
[BlackElo "2612"]
[Result "1-0"]
[Round "11"]
[TimeControl "180+2"]
[Date "2023.07.25"]
[WhiteClock "0:00:40"]
[BlackClock "0:01:10"]
[Board "27"]

1. e4 {[%clk 0:03:00]}  c5 {[%clk 0:02:59]} 2. Nf3 {[%clk 0:03:01]}  Nc6 {[%clk 0:02:59]} 3. Nc3 {[%clk 0:03:01]}  Nf6 {[%clk 0:02:56]} 4. Bb5 {[%clk 0:03:00]}  Nd4 {[%clk 0:02:51]} 5. e5 {[%clk 0:03:00]}  Ng4 {[%clk 0:02:50]} 6. Nxd4 {[%clk 0:02:53]}  cxd4 {[%clk 0:02:51]} 7. Qxg4 {[%clk 0:02:53]}  dxc3 {[%clk 0:02:49]} 8. dxc3 {[%clk 0:02:52]}  Qa5 {[%clk 0:02:49]} 9. Qe2 {[%clk 0:02:52]}  e6 {[%clk 0:02:47]} 10. O-O {[%clk 0:02:45]}  h5 {[%clk 0:02:39]} 11. Rd1 {[%clk 0:02:44]}  a6 {[%clk 0:02:38]} 12. Bd3 {[%clk 0:02:33]}  b5 {[%clk 0:02:35]} 13. Be4 {[%clk 0:02:29]}  Rb8 {[%clk 0:02:35]} 14. Be3 {[%clk 0:01:47]}  g6 {[%clk 0:02:12]} 15. Ba7 {[%clk 0:01:45]}  Rb7 {[%clk 0:02:07]} 16. Bxb7 {[%clk 0:01:45]}  Bxb7 {[%clk 0:02:08]} 17. Qe3 {[%clk 0:01:35]}  Qc7 {[%clk 0:02:03]} 18. Qb6 {[%clk 0:01:32]}  Qc8 {[%clk 0:01:57]} 19. Rd4 {[%clk 0:01:30]}  Bg7 {[%clk 0:01:55]} 20. Rad1 {[%clk 0:01:30]}  Bc6 {[%clk 0:01:47]} 21. Qb8 {[%clk 0:01:19]}  O-O {[%clk 0:01:46]} 22. Qxc8 {[%clk 0:01:19]}  Rxc8 {[%clk 0:01:47]} 23. f4 {[%clk 0:01:16]}  Bf8 {[%clk 0:01:41]} 24. Rxd7 {[%clk 0:01:08]}  Bxd7 {[%clk 0:01:38]} 25. Rxd7 {[%clk 0:01:09]}  b4 {[%clk 0:01:39]} 26. Bd4 {[%clk 0:01:06]}  a5 {[%clk 0:01:39]} 27. Kf2 {[%clk 0:01:02]}  a4 {[%clk 0:01:38]} 28. Ke3 {[%clk 0:00:57]}  a3 {[%clk 0:01:38]} 29. b3 {[%clk 0:00:53]}  bxc3 {[%clk 0:01:31]} 30. Kd3 {[%clk 0:00:53]}  h4 {[%clk 0:01:28]} 31. Bxc3 {[%clk 0:00:51]}  Bh6 {[%clk 0:01:28]} 32. g3 {[%clk 0:00:50]}  hxg3 {[%clk 0:01:27]} 33. hxg3 {[%clk 0:00:51]}  g5 {[%clk 0:01:28]} 34. Bd2 {[%clk 0:00:48]}  gxf4 {[%clk 0:01:28]} 35. gxf4 {[%clk 0:00:48]}  Kg7 {[%clk 0:01:25]} 36. c4 {[%clk 0:00:47]}  Rh8 {[%clk 0:01:20]} 37. c5 {[%clk 0:00:46]}  Kg6 {[%clk 0:01:19]} 38. b4 {[%clk 0:00:44]}  Bg7 {[%clk 0:01:15]} 39. c6 {[%clk 0:00:43]}  Rh3+ {[%clk 0:01:13]} 40. Kc4 {[%clk 0:00:42]}  Rh2 {[%clk 0:01:11]} 41. c7 {[%clk 0:00:40]}  Rxd2 {[%clk 0:01:10]} 42. Rxd2 {[%clk 0:00:40]} 1-0


[Site "https://www.chess.com"]